bitfinex/quotes_BTCUSD_20250829
["timestamp","ask_amount","ask_price","bid_price","bid_amount"]
[1756503224124,0.22136261,108450.0,108430.0,0.18445079]
[1756503224324,0.19363761,108450.0,108440.0,0.16396]
[1756503224547,0.19561761,108450.0,108440.0,0.16396]
[1756503224713,0.53561761,108450.0,108440.0,0.16396]
[1756503225357,0.53576027,108450.0,108440.0,0.16396]
[1756503225551,0.33271788,108450.0,108440.0,0.16396]
[1756503225753,0.51716588,108450.0,108440.0,0.16396]
[1756503226015,0.52638671,108450.0,108440.0,0.35354378]
[1756503227206,0.52814671,108450.0,108440.0,0.16911]
[1756503228129,0.18443378,108440.0,108430.0,0.18445079]
[1756503228331,0.18443378,108440.0,108430.0,0.35120079]
[1756503228536,0.18619378,108440.0,108430.0,0.35320079]
[1756503228702,0.18619378,108440.0,108430.0,0.35116079]
[1756503228903,0.18619378,108440.0,108430.0,0.35327079]
[1756503229528,0.18619378,108440.0,108430.0,0.35319079]
[1756503230370,0.18619378,108440.0,108430.0,0.16663]
[1756503230772,0.18619378,108440.0,108430.0,0.00311]
[1756503230967,0.18445079,108430.0,108420.0,0.35614752]
[1756503231187,0.18443378,108440.0,108420.0,0.52161752]
[1756503231349,0.18443378,108440.0,108420.0,0.35825752]
[1756503231588,0.18443378,108440.0,108430.0,0.16332]
[1756503231741,0.18619378,108440.0,108430.0,0.16656]
[1756503232343,0.18619378,108440.0,108430.0,0.16867]
[1756503232953,0.18619378,108440.0,108430.0,0.00535]
[1756503233160,0.18619378,108440.0,108430.0,0.16867]
[1756503236800,0.00176,108440.0,108430.0,0.16867]
[1756503236956,0.18619378,108440.0,108430.0,0.16867]
[1756503237758,0.18443378,108440.0,108430.0,0.16867]
[1756503241327,0.68676717,108440.0,108430.0,0.16867]
[1756503241648,0.18445079,108430.0,108420.0,0.07416]
[1756503241869,0.18445079,108430.0,108420.0,0.23676]
[1756503242072,0.18445079,108430.0,108420.0,0.42333781]
[1756503242724,0.18445079,108430.0,108420.0,0.42321781]
[1756503243050,0.18445079,108430.0,108420.0,0.35221781]
[1756503244491,0.18448482,108410.0,108400.0,0.07416]
[1756503244696,0.6868012,108420.0,108400.0,0.51365443]
[1756503244942,0.18446781,108420.0,108410.0,0.18772482]
[1756503245145,0.18446781,108420.0,108410.0,0.00535]
[1756503245346,0.18622781,108420.0,108410.0,0.00535]
[1756503245663,0.18122781,108420.0,108410.0,0.00535]
[1756503247373,0.18448482,108410.0,108400.0,0.50923779]
[1756503247586,0.18448482,108410.0,108400.0,0.34906779]
[1756503247951,0.18448482,108410.0,108400.0,0.51114779]
[1756503250270,0.18448482,108410.0,108400.0,0.34906779]
[1756503250505,0.18448482,108410.0,108400.0,0.51102779]
[1756503250699,0.18448482,108410.0,108400.0,0.51094779]
[1756503252456,0.18448482,108410.0,108400.0,0.51086779]
[1756503254092,0.18448482,108410.0,108400.0,0.26077147]
[1756503254289,0.18448482,108410.0,108400.0,0.42257147]
[1756503256291,0.18624482,108410.0,108390.0,0.1969848]
[1756503256507,0.18450184,108400.0,108390.0,0.27605518]
[1756503256716,0.18450184,108400.0,108390.0,0.16859]
[1756503256922,0.18450184,108400.0,108390.0,0.16648]
[1756503256923,0.18626184,108400.0,108390.0,0.16648]
[1756503257347,0.18626184,108400.0,108390.0,0.00324]
[1756503257570,0.18626184,108400.0,108390.0,0.16648]
[1756503258171,0.18451886,108390.0,108380.0,0.25860285]
[1756503258373,0.18451886,108390.0,108380.0,0.51220917]
[1756503259059,0.22294851,108390.0,108380.0,0.51220917]
[1756503260164,0.22294851,108390.0,108380.0,0.34900917]
[1756503260383,0.22294851,108390.0,108380.0,0.51204917]
[1756503261954,0.22294851,108390.0,108380.0,0.42375285]
[1756503263440,0.22294851,108390.0,108380.0,0.42371285]
[1756503263582,0.22294851,108390.0,108380.0,0.26071285]
[1756503263779,0.22294851,108390.0,108380.0,0.42371285]
[1756503264225,0.22294851,108390.0,108380.0,0.42367285]
[1756503264649,0.22294851,108390.0,108380.0,0.42359285]
[1756503265789,0.22294851,108390.0,108380.0,0.26071285]
[1756503265968,0.22294851,108390.0,108380.0,0.42355285]
[1756503269909,0.22294851,108390.0,108380.0,0.92588624]
[1756503270444,0.22294851,108390.0,108380.0,0.42355285]
[1756503271629,0.22294851,108390.0,108380.0,0.42319285]
[1756503275923,0.22294851,108390.0,108380.0,0.42299285]
[1756503279293,0.22294851,108390.0,108380.0,0.42267285]
[1756503279945,0.22294851,108390.0,108380.0,0.42259285]
[1756503280307,0.22294851,108390.0,108380.0,0.42251285]
[1756503281611,0.03842965,108390.0,108380.0,0.42251285]
[1756503281946,0.68683523,108400.0,108380.0,0.42251285]
[1756503282312,0.72473418,108400.0,108380.0,0.42251285]
[1756503282500,0.72473418,108400.0,108390.0,0.16168]
[1756503282702,0.72649418,108400.0,108390.0,0.16168]
[1756503285007,0.22416079,108400.0,108390.0,0.16473]
[1756503285163,0.72649418,108400.0,108390.0,0.16168]
[1756503286684,0.18451886,108390.0,108380.0,0.25841285]
[1756503286898,0.22416079,108400.0,108390.0,0.00305]
[1756503287124,0.22240079,108400.0,108390.0,0.00305]
[1756503287337,0.72649418,108400.0,108390.0,0.00305]
[1756503287560,0.22416079,108400.0,108390.0,0.00305]
[1756503287765,0.72649418,108400.0,108390.0,0.00305]
[1756503288292,0.72649418,108400.0,108380.0,0.41692285]
[1756503288505,0.72649418,108400.0,108380.0,0.41997285]
[1756503290665,0.88793418,108400.0,108380.0,0.41692285]
[1756503290974,0.88793418,108400.0,108390.0,0.00306]
[1756503292301,0.38560079,108400.0,108390.0,0.16442]
[1756503292705,0.88785418,108400.0,108380.0,0.41660285]
[1756503292864,0.88785418,108400.0,108390.0,0.00306]
[1756503293354,0.8882186,108400.0,108390.0,0.00306]
[1756503294754,0.38552079,108400.0,108390.0,0.00306]
[1756503294975,0.8882186,108400.0,108390.0,0.00306]
[1756503297358,0.38552079,108400.0,108380.0,0.92236066]
[1756503297565,0.8882186,108400.0,108380.0,0.91930066]
[1756503297772,0.8882186,108400.0,108390.0,0.00306]
[1756503300070,0.38552079,108400.0,108390.0,0.00306]
[1756503300401,0.8882186,108400.0,108390.0,0.00306]
[1756503301459,0.38376079,108400.0,108390.0,0.0051]
[1756503301702,0.8876586,108400.0,108390.0,0.0051]
[1756503301939,0.22416079,108400.0,108390.0,0.0051]
[1756503302139,0.8876186,108400.0,108390.0,0.0051]
[1756503303045,0.7268586,108400.0,108390.0,0.18961886]
[1756503303246,0.22416079,108400.0,108390.0,0.18961886]
[1756503303450,0.7268586,108400.0,108390.0,0.18961886]
[1756503303661,0.22416079,108400.0,108390.0,0.0051]
[1756503303864,0.7268586,108400.0,108390.0,0.0051]
[1756503304819,0.03789895,108400.0,108390.0,0.69231667]
[1756503305024,0.34004753,108410.0,108400.0,0.18450184]
[1756503305227,4.753e-05,108410.0,108400.0,1.44397378]
[1756503307349,4.753e-05,108410.0,108400.0,1.11174941]
[1756503307530,4.753e-05,108410.0,108400.0,1.22776873]
[1756503307879,4.753e-05,108410.0,108400.0,1.6762634]
[1756503308056,0.18449575,108470.0,108450.0,0.18441678]
[1756503308267,0.18449575,108470.0,108450.0,0.34795678]
[1756503308268,0.68672818,108470.0,108450.0,0.34795678]
[1756503308461,0.18454332,108470.0,108460.0,0.18949977]
[1756503308672,0.03753228,108470.0,108460.0,0.18949977]
[1756503308873,0.06525028,108470.0,108460.0,0.18949977]
[1756503309203,0.03753228,108470.0,108460.0,0.27779609]
[1756503309397,0.03753228,108470.0,108460.0,0.78002852]
[1756503315632,0.03753228,108470.0,108460.0,0.80773952]
[1756503315798,0.03753228,108470.0,108460.0,0.89603584]
[1756503324987,0.03753228,108470.0,108460.0,0.39380341]
[1756503325182,0.03753228,108470.0,108460.0,0.89603584]
[1756503326169,0.03753228,108470.0,108460.0,0.86832484]
[1756503327949,0.03753228,108470.0,108460.0,1.03926366]
[1756503327950,4.757e-05,108470.0,108460.0,1.03926366]
[1756503328163,4.757e-05,108470.0,108460.0,1.06495265]
[1756503328571,1e-08,108470.0,108460.0,1.40495265]
[1756503328804,1e-08,108470.0,108460.0,1.43265965]
[1756503329026,1e-08,108470.0,108460.0,1.97186986]
[1756503329252,1e-08,108470.0,108460.0,2.02186986]
[1756503329591,1e-08,108470.0,108460.0,2.18174986]
[1756503330286,1e-08,108470.0,108460.0,2.58174986]
[1756503330598,1e-08,108470.0,108460.0,2.58474986]
[1756503330697,1e-08,108470.0,108460.0,2.58574986]
[1756503331054,1e-08,108470.0,108460.0,2.58474986]
[1756503331492,1e-08,108470.0,108460.0,2.63022986]
[1756503331931,1e-08,108480.0,108470.0,2.14978645]
[1756503332147,1e-08,108480.0,108470.0,2.55709909]
[1756503332353,0.0002,108510.0,108500.0,0.20527061]
[1756503332558,0.0002,108510.0,108500.0,1.02651936]
[1756503332754,0.00024755,108510.0,108500.0,1.0611301]
[1756503333774,0.00024755,108510.0,108500.0,1.0648231]
[1756503334419,0.0031316,108510.0,108500.0,1.0648231]
[1756503334620,0.00024755,108510.0,108500.0,1.0648231]
[1756503334825,0.00024755,108510.0,108500.0,1.0611301]
[1756503336231,0.00024755,108510.0,108500.0,0.55889767]
[1756503336455,0.00207755,108510.0,108500.0,0.34650811]
[1756503336689,0.00322755,108510.0,108500.0,0.50630811]
[1756503336854,0.00207755,108510.0,108500.0,0.50830811]
[1756503337055,0.68977478,108510.0,108500.0,0.005]
[1756503337393,0.68977478,108510.0,108500.0,0.43242811]
[1756503337394,0.00496185,108510.0,108500.0,0.43242811]
[1756503337552,0.00496185,108510.0,108500.0,0.52372443]
[1756503337754,0.00496185,108510.0,108500.0,0.52670443]
[1756503337918,0.00496185,108510.0,108500.0,0.43840811]
[1756503338122,0.00496185,108510.0,108500.0,0.43740811]
[1756503338327,0.00496185,108510.0,108500.0,0.43442811]
[1756503339009,0.00496185,108510.0,108500.0,0.43242811]
[1756503339210,0.00496185,108510.0,108500.0,0.5075095]
[1756503339889,0.00496185,108510.0,108500.0,0.5783895]
[1756503340778,0.00496185,108510.0,108500.0,0.50330811]
[1756503340981,0.47891084,108520.0,108500.0,0.50330811]
[1756503341185,0.18477486,108520.0,108500.0,0.50628811]
[1756503341400,0.68700729,108520.0,108500.0,0.50628811]
[1756503341781,0.21715593,108520.0,108500.0,0.34350811]
[1756503341966,1.05938836,108520.0,108510.0,0.1598]
[1756503342163,0.55715593,108520.0,108510.0,0.1598]
[1756503342367,1.05938836,108520.0,108510.0,0.1598]
[1756503342626,0.37285652,108520.0,108510.0,0.43241112]
[1756503343416,0.37285652,108520.0,108510.0,0.43539112]
[1756503343587,0.37285652,108520.0,108510.0,0.50161086]
[1756503343789,0.03285652,108520.0,108510.0,0.50161086]
[1756503344418,0.03285652,108520.0,108510.0,0.43747112]
[1756503346774,0.03285652,108520.0,108510.0,0.93970355]
[1756503352542,0.03285652,108520.0,108510.0,0.93966355]
[1756503352962,0.0357404,108520.0,108510.0,0.93966355]
[1756503354323,0.03574039,108520.0,108510.0,0.93966355]
[1756503354538,0.03574039,108520.0,108510.0,1.02795987]
[1756503356698,0.03574039,108520.0,108510.0,0.27559112]
[1756503356900,0.03574039,108520.0,108510.0,0.43744112]
[1756503357112,0.03574039,108520.0,108510.0,0.93967355]
[1756503357858,0.03574047,108520.0,108510.0,0.43744112]
[1756503358064,0.03574047,108520.0,108510.0,0.93967355]
[1756503358262,0.0357405,108520.0,108510.0,1.02796987]
[1756503360012,0.0357405,108520.0,108510.0,0.52569744]
[1756503360364,0.22003832,108520.0,108510.0,0.43233112]
[1756503360753,0.22003832,108520.0,108510.0,0.24801632]
[1756503360921,0.7395411,108520.0,108510.0,0.24801632]
[1756503361343,0.7395411,108520.0,108510.0,0.08829632]
[1756503361536,0.1843148,108510.0,108500.0,0.07088]
[1756503361785,0.68943121,108510.0,108500.0,0.31889632]
[1756503362095,0.68943121,108510.0,108470.0,0.18983932]
[1756503362096,0.18436578,108480.0,108470.0,0.18983932]
[1756503362316,0.18436578,108480.0,108470.0,0.23125062]
[1756503362772,0.18725099,108480.0,108470.0,0.39097062]
[1756503362986,0.18725099,108480.0,108470.0,0.23125062]
[1756503363204,0.18436578,108480.0,108470.0,0.39097062]
[1756503363630,0.18484093,108480.0,108470.0,0.57535339]
[1756503364049,0.18484093,108480.0,108470.0,0.39097062]
[1756503364474,0.18484093,108480.0,108470.0,0.57535339]
[1756503364877,0.18484093,108480.0,108470.0,0.31885632]
[1756503365128,0.18484093,108480.0,108470.0,0.23056]
[1756503365395,0.18484093,108480.0,108470.0,0.2306]
[1756503365776,0.17961093,108480.0,108470.0,0.2306]
[1756503366560,0.17961093,108480.0,108470.0,0.26013892]
[1756503367948,0.17961093,108480.0,108470.0,0.2306]
[1756503368905,0.68184336,108480.0,108470.0,0.2306]
[1756503369495,0.17961093,108480.0,108470.0,0.2306]
[1756503369730,0.68184336,108480.0,108470.0,0.2306]
[1756503370953,0.68184336,108480.0,108470.0,0.07084]
[1756503371142,0.18438277,108470.0,108450.0,0.33958676]
[1756503371291,0.6866152,108470.0,108460.0,0.15976]
[1756503371532,0.18439977,108460.0,108450.0,0.42788308]
[1756503371781,0.18439977,108460.0,108450.0,0.58764308]
[1756503371997,0.18438277,108470.0,108450.0,0.58973308]
[1756503372624,0.18438277,108470.0,108460.0,0.15976]
[1756503372837,0.6866152,108470.0,108460.0,0.15976]
[1756503374802,0.18439977,108460.0,108450.0,0.07388]
[1756503375008,0.6866322,108460.0,108450.0,0.23364]
[1756503375897,0.18439977,108460.0,108450.0,0.23364]
[1756503376125,0.6866322,108460.0,108450.0,0.23364]
[1756503377682,0.6866322,108460.0,108450.0,0.23064]
[1756503377892,0.6866322,108460.0,108450.0,0.23364]
[1756503378291,0.6866322,108460.0,108450.0,0.23573]
[1756503378533,0.6866322,108460.0,108450.0,0.23364]
[1756503378733,0.6866322,108460.0,108450.0,0.07388]
[1756503378891,0.6866322,108460.0,108450.0,0.23364]
[1756503379522,0.6866322,108460.0,108450.0,0.41805678]
[1756503379939,0.6866322,108460.0,108450.0,0.41998678]
[1756503380150,0.71826181,108460.0,108450.0,0.41998678]
[1756503380756,0.21602938,108460.0,108450.0,0.07581]
[1756503380955,0.71826181,108460.0,108450.0,0.23561]
[1756503381181,0.21602938,108460.0,108450.0,0.42002678]
[1756503381382,0.71826181,108460.0,108450.0,0.42002678]
[1756503381656,0.21602938,108460.0,108450.0,0.42002678]
[1756503381997,0.53386204,108460.0,108450.0,0.42002678]
[1756503382199,0.71826181,108460.0,108450.0,0.42002678]
[1756503384790,0.21602938,108460.0,108450.0,0.42002678]
[1756503385013,0.71826181,108460.0,108450.0,0.23561]
[1756503385210,0.71826181,108460.0,108450.0,0.23068]
[1756503385844,0.71826181,108460.0,108450.0,0.42002678]
[1756503387049,0.21602938,108460.0,108450.0,0.42002678]
[1756503387253,0.00047515,108480.0,108470.0,0.18438277]
[1756503387571,0.00047515,108480.0,108470.0,0.43740909]
[1756503389194,0.00047515,108480.0,108470.0,0.43840909]
[1756503389343,0.00047515,108480.0,108470.0,0.50491436]
[1756503389555,0.00047515,108480.0,108470.0,0.50691436]
[1756503389960,0.00047515,108480.0,108470.0,0.50491436]
[1756503390379,0.00047515,108480.0,108470.0,0.50391436]
[1756503392259,0.00047515,108480.0,108470.0,0.50591436]
[1756503392934,0.00047515,108480.0,108470.0,0.50391436]
[1756503393073,0.00047515,108480.0,108470.0,0.50491436]
[1756503394269,0.00047515,108480.0,108470.0,0.50391436]
[1756503394881,0.00047515,108480.0,108470.0,0.50591436]
[1756503395086,0.00047515,108480.0,108470.0,0.50391436]
[1756503397479,0.00047515,108480.0,108470.0,0.57479436]
[1756503397686,0.00047515,108480.0,108470.0,0.57579436]
[1756503398338,0.00047515,108480.0,108470.0,0.57479436]
[1756503398516,0.00047515,108480.0,108470.0,0.57679436]
[1756503399390,0.00047515,108480.0,108470.0,0.57779436]
[1756503405552,0.00047515,108480.0,108470.0,1.23002679]
[1756503405782,0.00047515,108480.0,108470.0,1.25096561]
[1756503406562,0.00047515,108480.0,108470.0,1.6166546]
[1756503406948,0.00047515,108480.0,108470.0,1.6443596]
[1756503407903,0.00047515,108480.0,108470.0,1.6423596]
[1756503408057,0.00047515,108480.0,108470.0,1.6433596]
[1756503408264,0.00047515,108480.0,108470.0,1.6443596]
[1756503408460,0.00047515,108480.0,108470.0,1.6423596]
[1756503408682,0.00047515,108480.0,108470.0,1.6453596]
[1756503408886,0.00047515,108480.0,108470.0,1.8453596]
[1756503410063,0.50223243,108520.0,108510.0,0.1843148]
[1756503410262,0.50223243,108520.0,108510.0,0.38085799]
[1756503410444,0.50223243,108520.0,108510.0,0.3471248]
[1756503410685,0.3402,108530.0,108520.0,0.18429782]
[1756503411146,0.37753707,108530.0,108520.0,0.18429782]
[1756503412020,0.8797695,108530.0,108520.0,0.18429782]
[1756503412275,1.06405034,108530.0,108520.0,0.18429782]
[1756503412710,0.37753707,108530.0,108520.0,0.18742782]
[1756503412929,0.03753707,108530.0,108520.0,0.24265008]
[1756503413148,0.03753707,108530.0,108520.0,0.31353008]
[1756503414015,0.03753707,108530.0,108520.0,0.26038782]
[1756503419336,0.03753707,108530.0,108520.0,0.24978782]
[1756503422504,0.22181791,108530.0,108520.0,0.24978782]
[1756503423676,0.03753707,108530.0,108520.0,0.24978782]
[1756503424125,0.68649759,108540.0,108520.0,0.24978782]
[1756503424294,0.68649759,108540.0,108530.0,0.1596]
[1756503426108,0.68938149,108540.0,108530.0,0.1596]
[1756503426333,1.02938149,108540.0,108530.0,0.1596]
[1756503426537,0.52714906,108540.0,108530.0,0.1596]
[1756503426742,1.02938149,108540.0,108530.0,0.1596]
[1756503427667,1.06677354,108540.0,108530.0,0.1596]
[1756503429312,1.06388964,108540.0,108530.0,0.1596]
[1756503429510,1.0667736,108540.0,108530.0,0.1596]
[1756503431771,1.0667736,108540.0,108490.0,0.20338799]
[1756503431772,0.18428084,108530.0,108490.0,0.20338799]
[1756503431963,0.18428084,108530.0,108500.0,0.16269]
[1756503431964,0.18433085,108510.0,108500.0,0.16269]
[1756503432134,0.18433085,108510.0,108500.0,0.2316743]
[1756503433143,0.18433085,108510.0,108500.0,0.15956]
[1756503433357,0.68656328,108510.0,108500.0,0.16156]
[1756503433574,0.68656328,108510.0,108500.0,0.15956]
[1756503433989,0.18433085,108510.0,108500.0,0.16269]
[1756503434218,0.18433179,108500.0,108490.0,0.76059793]
[1756503434397,0.18433179,108500.0,108490.0,0.50826182]
[1756503435043,0.18433179,108500.0,108490.0,0.4199655]
[1756503435447,0.18433179,108500.0,108490.0,0.4219655]
[1756503435583,0.18433179,108500.0,108490.0,0.23761755]
[1756503435785,0.18433179,108500.0,108490.0,0.42196633]
[1756503436655,0.18433179,108500.0,108490.0,0.42296633]
[1756503436834,0.18433179,108500.0,108490.0,0.4485176]
[1756503437041,0.18433179,108500.0,108490.0,0.2889976]
[1756503437386,0.18433179,108500.0,108490.0,0.42296633]
[1756503437584,0.68656328,108510.0,108490.0,0.42296633]
[1756503437790,0.18433179,108500.0,108490.0,0.41983633]
[1756503438359,0.18433085,108510.0,108490.0,0.42296633]
[1756503438581,0.18433179,108500.0,108490.0,0.50813265]
[1756503439221,0.18433179,108500.0,108490.0,0.51126265]
[1756503439401,0.18433179,108500.0,108490.0,0.50926265]
[1756503439547,0.18433179,108500.0,108490.0,0.50826265]
[1756503440363,0.18433179,108500.0,108490.0,0.50926265]
[1756503441243,0.18433179,108500.0,108490.0,0.51026265]
[1756503441673,0.18433179,108500.0,108490.0,0.42196633]
[1756503441882,0.18433179,108500.0,108490.0,0.26244633]
[1756503442080,0.18433179,108500.0,108490.0,0.42196633]
[1756503443883,0.18433179,108500.0,108490.0,0.26244633]
[1756503444178,0.18433179,108500.0,108490.0,0.42192633]
[1756503445517,0.18433179,108500.0,108490.0,0.42197633]
[1756503445751,0.18433179,108500.0,108490.0,0.23762755]
[1756503446105,0.18433179,108500.0,108490.0,0.42197633]
[1756503447094,0.1842819,108500.0,108490.0,0.42197633]
[1756503447530,0.1842819,108500.0,108490.0,0.23762755]
[1756503447753,0.68651433,108500.0,108490.0,0.23236755]
[1756503449500,0.68651433,108500.0,108490.0,0.00204755]
[1756503449695,1.02651433,108500.0,108490.0,0.16152755]
[1756503450182,1.02651433,108500.0,108490.0,0.16365755]
[1756503450432,1.02651433,108500.0,108490.0,0.16052755]
[1756503450641,1.02651433,108500.0,108490.0,0.15952755]
[1756503451834,1.02651433,108500.0,108490.0,4.755e-05]
[1756503452002,1.18599433,108500.0,108490.0,4.755e-05]
[1756503452222,1.27429065,108500.0,108490.0,4.755e-05]
[1756503452682,1.30200365,108500.0,108490.0,4.755e-05]
[1756503453078,1.30300365,108500.0,108490.0,4.755e-05]
[1756503453311,1.8251749,108500.0,108490.0,4.755e-05]
[1756503453517,6.8213219,108500.0,108490.0,4.755e-05]
[1756503453719,6.8713219,108500.0,108490.0,4.755e-05]
[1756503453948,6.8753219,108500.0,108490.0,4.755e-05]
[1756503454151,6.87820757,108500.0,108490.0,4.755e-05]
[1756503454727,6.8753219,108500.0,108490.0,4.755e-05]
[1756503455057,6.87820754,108500.0,108490.0,4.755e-05]
[1756503455217,6.8753219,108500.0,108490.0,4.755e-05]
[1756503455644,6.87820759,108500.0,108490.0,4.755e-05]
[1756503456619,6.92059995,108500.0,108490.0,4.755e-05]
[1756503459546,6.97059995,108500.0,108490.0,4.755e-05]
[1756503459718,6.98782609,108500.0,108490.0,4.755e-05]
[1756503460842,6.97060008,108500.0,108490.0,4.755e-05]
[1756503461018,6.98782657,108500.0,108490.0,4.755e-05]
[1756503461441,7.00767272,108500.0,108490.0,4.755e-05]
[1756503461798,7.00767407,108500.0,108490.0,4.755e-05]
[1756503462230,6.74559502,108500.0,108490.0,4.755e-05]
[1756503462433,6.92992681,108500.0,108490.0,4.755e-05]
[1756503462664,5.92546195,108500.0,108490.0,4.755e-05]
[1756503462868,6.92992681,108500.0,108490.0,4.755e-05]
[1756503463979,0.21604479,108500.0,108490.0,0.00530755]
[1756503464181,0.69056422,108500.0,108490.0,0.00530755]
[1756503465495,0.68656422,108500.0,108490.0,0.00530755]
[1756503465718,0.68756422,108500.0,108490.0,0.00530755]
[1756503465932,0.68856422,108500.0,108490.0,0.00530755]
[1756503467448,0.68856422,108500.0,108490.0,0.18965633]
[1756503469108,0.68856422,108500.0,108490.0,0.00530755]
[1756503474089,0.18633179,108500.0,108490.0,0.00530755]
[1756503476744,0.68856422,108500.0,108490.0,0.00530755]
[1756503477819,0.18633179,108500.0,108490.0,0.00530755]
[1756503478138,0.68856422,108500.0,108490.0,0.00530755]
[1756503478940,0.18633179,108500.0,108490.0,0.00530755]
[1756503480381,0.002,108500.0,108490.0,0.18965633]
[1756503480587,0.002,108500.0,108490.0,0.8684814]
[1756503481056,0.002,108500.0,108490.0,0.8961864]
[1756503481500,0.001,108500.0,108490.0,0.8961864]
[1756503481705,0.85511985,108520.0,108500.0,0.18431939]
[1756503481905,0.85511985,108520.0,108510.0,0.00535]
[1756503482107,0.69575985,108520.0,108510.0,0.00535]
[1756503482244,0.85511985,108520.0,108510.0,0.00535]
[1756503482657,0.69575985,108520.0,108510.0,0.00535]
[1756503482976,0.85611985,108520.0,108510.0,0.1896648]
[1756503483158,0.35388742,108520.0,108510.0,0.00535]
[1756503483348,0.85611985,108520.0,108510.0,0.00535]
[1756503483973,0.69675985,108520.0,108510.0,0.00535]
[1756503484167,0.19452742,108520.0,108510.0,0.1896648]
[1756503484367,0.69675985,108520.0,108510.0,0.1896648]
[1756503484551,0.69775985,108520.0,108510.0,0.1896648]
[1756503484984,0.69675985,108520.0,108510.0,0.1896648]
[1756503485426,0.69775985,108520.0,108510.0,0.1896648]
[1756503486025,0.19552742,108520.0,108510.0,0.1896648]
[1756503488453,0.18631253,108520.0,108510.0,0.24299922]
[1756503489382,0.18631253,108520.0,108510.0,0.1896648]
[1756503497638,0.002,108520.0,108510.0,0.69189723]
[1756503497883,0.002,108520.0,108510.0,0.78019355]
[1756503498098,0.002,108520.0,108510.0,0.80789355]
[1756503498306,0.002,108520.0,108510.0,0.30566112]
[1756503498507,0.002,108520.0,108510.0,0.8949156]
[1756503498508,0.001,108520.0,108510.0,0.8949156]
[1756503498960,0.001,108520.0,108510.0,0.8959156]
[1756503499216,0.48689205,108540.0,108530.0,0.18428084]
[1756503499445,0.48689205,108540.0,108530.0,0.34562084]
[1756503499655,0.48689205,108540.0,108530.0,0.34878084]
[1756503499878,0.48689205,108540.0,108530.0,0.40654414]
[1756503500550,0.48789205,108540.0,108530.0,0.34878084]
[1756503501215,0.48889205,108540.0,108530.0,0.34878084]
[1756503501686,0.03939205,108540.0,108530.0,0.34878084]
[1756503502579,0.22365591,108540.0,108530.0,0.34878084]
[1756503503917,0.22365591,108540.0,108530.0,0.1645]
[1756503506283,0.22365591,108540.0,108530.0,0.24960294]
[1756503507364,0.22365591,108540.0,108530.0,0.1645]
[1756503508132,0.22365591,108540.0,108530.0,0.00526]
[1756503508335,0.22365591,108540.0,108530.0,0.16446]
[1756503509213,0.22653977,108540.0,108530.0,0.16446]
[1756503509415,0.18433179,108500.0,108490.0,0.3447594]
[1756503509619,0.18433179,108500.0,108490.0,0.91228692]
[1756503509817,0.18433179,108500.0,108490.0,0.78394992]
[1756503509944,0.18433179,108500.0,108490.0,1.1274987]
[1756503510366,0.18433179,108500.0,108490.0,0.20960319]
[1756503510607,0.18433179,108500.0,108490.0,0.34310019]
[1756503510807,0.18433179,108500.0,108490.0,0.84533262]
[1756503511009,0.18433179,108500.0,108490.0,0.34310019]
[1756503511201,0.18433179,108500.0,108490.0,0.34710019]
[1756503511396,0.18433179,108500.0,108490.0,0.52944897]
[1756503511825,0.18433179,108500.0,108490.0,0.53044897]
[1756503512062,0.18433179,108500.0,108490.0,0.52644897]
[1756503512489,0.18433179,108500.0,108490.0,0.52744897]
[1756503513156,0.18433179,108500.0,108490.0,1.0296814]
[1756503513844,0.18433179,108500.0,108490.0,1.0573854]
[1756503515096,0.18433179,108500.0,108490.0,1.0296814]
[1756503515507,0.1843293,108510.0,108490.0,1.0296814]
[1756503515710,0.1843293,108510.0,108500.0,0.00546414]
[1756503515907,0.1843293,108510.0,108500.0,0.00756414]
[1756503516512,0.1843293,108510.0,108500.0,0.09586046]
[1756503516709,0.1843293,108510.0,108500.0,0.18415678]
[1756503516998,0.1843293,108510.0,108500.0,0.18185264]
[1756503518562,0.1843293,108510.0,108500.0,0.34105264]
[1756503519712,0.1843293,108510.0,108500.0,0.25275632]
[1756503524104,0.1843293,108510.0,108500.0,0.25375632]
[1756503524712,0.1843293,108510.0,108500.0,0.25575632]
[1756503525248,0.1843293,108510.0,108500.0,0.09655632]
[1756503525446,0.1843293,108510.0,108500.0,0.25806046]
[1756503525650,0.1843293,108510.0,108500.0,0.25575632]
[1756503525857,0.1843293,108510.0,108500.0,0.2782134]
[1756503526057,0.1843293,108510.0,108500.0,0.1190134]
[1756503526259,0.1843293,108510.0,108500.0,0.1622]
[1756503526260,0.68656173,108510.0,108500.0,0.1622]
[1756503526627,0.84576173,108510.0,108500.0,0.003]
[1756503527158,0.84576173,108510.0,108500.0,0.001]
[1756503527363,0.18433179,108500.0,108490.0,0.00320755]
[1756503527561,0.18433179,108500.0,108490.0,0.25070387]
[1756503528641,0.18433179,108500.0,108490.0,0.09250387]
[1756503528850,0.18433179,108500.0,108490.0,0.25170387]
[1756503529783,0.18433179,108500.0,108490.0,0.09250387]
[1756503529989,0.18433179,108500.0,108490.0,0.25370387]
[1756503530185,0.18433179,108500.0,108490.0,0.25584387]
[1756503532170,0.18433179,108500.0,108490.0,0.16754755]
[1756503533646,0.18433179,108500.0,108490.0,0.16654755]
[1756503533768,0.18433179,108500.0,108490.0,0.16454755]
[1756503534580,0.68656422,108500.0,108490.0,0.16242755]
[1756503534785,0.68656422,108500.0,108490.0,0.15924755]
[1756503535398,0.18433179,108500.0,108490.0,4.755e-05]
[1756503535600,0.68656422,108500.0,108490.0,4.755e-05]
[1756503536216,0.68756422,108500.0,108490.0,4.755e-05]
[1756503536682,1.02856422,108500.0,108490.0,4.755e-05]
[1756503536807,0.52633179,108500.0,108490.0,4.755e-05]
[1756503537006,1.02856422,108500.0,108490.0,0.00536755]
[1756503537208,0.002,108500.0,108490.0,0.27801265]
[1756503537443,0.002,108500.0,108490.0,0.78024508]
[1756503537648,0.002,108500.0,108490.0,0.8685414]
[1756503539614,0.001,108500.0,108490.0,0.8685414]
[1756503539978,0.002,108500.0,108490.0,0.8685414]
[1756503540443,0.18431724,108510.0,108490.0,0.8685414]
[1756503540654,0.18431724,108510.0,108500.0,0.16238]
[1756503541105,0.18431724,108510.0,108500.0,0.16452]
[1756503542831,0.18431724,108510.0,108500.0,0.16234]
[1756503543398,0.18431724,108510.0,108500.0,0.34881179]
[1756503544334,0.18431724,108510.0,108500.0,0.16448]
[1756503544536,0.64301271,108520.0,108500.0,0.38550987]
[1756503544748,0.80217271,108520.0,108510.0,0.1874948]
[1756503544947,0.64301271,108520.0,108510.0,0.1896348]
[1756503545897,0.64401271,108520.0,108510.0,0.1896348]
[1756503546075,0.19451271,108520.0,108510.0,0.1896348]
[1756503546282,0.001,108520.0,108510.0,0.1896348]
[1756503546685,1.18572173,108530.0,108510.0,0.1896348]
[1756503546859,1.18572173,108530.0,108520.0,0.00218]
[1756503547662,1.18599173,108530.0,108520.0,0.00118]
[1756503548137,0.6837593,108530.0,108520.0,0.00332]
[1756503548390,0.84699173,108530.0,108520.0,0.00118]